fUSD/lending_fUSD_20251127
["ID","MTS","AMOUNT","RATE_DAILY","PERIOD"]
[394963271,1764215437429,-5695.91311845,0.00015026,2]
[394963272,1764215437440,-452.01219093,0.00015026,2]
[394963273,1764215437472,-1723.26,0.00015026,2]
[394963274,1764215437484,-2361.47920396,0.00015026,2]
[394963275,1764215437495,-434.56643402,0.00015026,2]
[394963276,1764215437531,-666.0,0.00015026,2]
[394963277,1764215437582,-58944.27085631,0.00015026,2]
[394963278,1764215437593,-3013.12347,0.00015026,2]
[394963279,1764215437604,-543.57890316,0.00015026,2]
[394963281,1764215439749,-1.7e-07,0.00015026,2]
[394963282,1764215439765,-112660.97114807,0.00015026,2]
[394963298,1764215443238,-272.5,0.00015026,2]
[394963299,1764215443974,-2132.62237244,0.00015026,2]
[394963385,1764215445514,-263465.4757615,0.00015026,2]
[394963386,1764215445621,-2664.45949693,0.00015026,2]
[394963389,1764215458456,-999.98999983,0.00014926,2]
[394963390,1764215460530,-500.0,0.00014926,2]
[394963391,1764215462075,-500.0,0.00014926,2]
[394963392,1764215463680,-411.28167679,0.00014926,2]
[394963393,1764215467100,-58.08054207,0.00014926,2]
[394963394,1764215467122,-300.0,0.00015025,2]
[394963395,1764215467146,-300.0,0.00015025,2]
[394963396,1764215467168,-130.63778114,0.00015025,2]
[394963397,1764215469707,-169.36221886,0.00015025,2]
[394963398,1764215469732,-280.63778114,0.00015026,2]
[394963399,1764215667853,-1000.0,0.00014926,2]
[394963400,1764215667875,-650.0,0.00014926,2]
[394963402,1764216225114,170.32,0.00022,30]
[394963403,1764216327919,-444.07039774,0.00014809,2]
[394963405,1764216346298,422.51,0.00013699,2]
[394963406,1764216356894,166.66,0.00014272,2]
[394963407,1764216356939,166.66,0.00014572,2]
[394963408,1764216385828,157.26,0.00014186,2]
[394963409,1764216521923,1057.97019412,0.00014577,2]
[394963410,1764216604313,210.0,0.00014809,2]
[394963412,1764216631641,-1.28820226,0.00014809,2]
[394963413,1764216631651,-167.48453338,0.00014825,2]
[394963414,1764216631660,-2815.42226633,0.00014825,2]
[394963415,1764216631669,-246.81706823,0.00014825,2]
[394963416,1764216631678,-166.66,0.00014873,2]
[394963417,1764216631688,-300.0,0.00014923,2]
[394963418,1764216631697,-260.0,0.00014923,2]
[394963419,1764216631706,-300.0,0.00014923,2]
[394963420,1764216631715,-300.0,0.00014923,2]
[394963421,1764216631723,-1200.0,0.00014923,2]
[394963422,1764216631732,-236.00437684,0.00014924,2]
[394963423,1764216631741,-214.47237316,0.00014924,2]
[394963424,1764216631750,-577.63684871,0.00014924,2]
[394963425,1764216631761,-500.0,0.00014924,2]
[394963426,1764216631771,-356.03330879,0.00014924,2]
[394963427,1764216631779,-500.0,0.00014924,2]
[394963428,1764216631788,-150.0,0.00014924,2]
[394963429,1764216631797,-128387.44861107,0.00014925,2]
[394963430,1764216631812,-500.0,0.00014925,2]
[394963431,1764216631823,-4296.49408706,0.00014925,2]
[394963432,1764216631844,-2703.53710003,0.00014925,2]
[394963504,1764216637613,-5079.9999997,0.00014925,2]
[394963505,1764216637721,-8568.3,0.00014925,2]
[394963506,1764216637734,-1300.0,0.00014925,2]
[394963507,1764216637774,-92362.71300253,0.00014925,2]
[394963509,1764216639820,-1.7e-07,0.00014924,2]
[394963521,1764216692636,1573.695,0.00014626,2]
[394963522,1764216692676,165.453,0.00014626,2]
[394963524,1764216704561,1641.83,0.00014348,2]
[394963528,1764216782952,166.66,0.00014598,2]
[394963529,1764216792862,-236.0721,0.00014816,2]
[394963530,1764216792884,-420.2104,0.00014825,2]
[394963531,1764216792907,-843.7279352,0.00014825,2]
[394963532,1764216822572,-344.79150016,0.00014825,2]
[394963533,1764216840048,1850.0,0.00014825,2]
[394963534,1764216840986,167.48453338,0.00014825,2]
[394963536,1764216851451,484.36,0.0001424,2]
[394963537,1764216889590,200.0,0.0001421,2]
[394963538,1764216908105,215.96493464,0.00014825,2]
[394963539,1764216944056,-500.0,0.0001488,2]
[394963540,1764216944719,1863.23,0.00014168,2]
[394963541,1764216987862,-474.22229,0.0001488,2]
[394963542,1764216987884,-25.77771,0.00014915,2]
[394963543,1764216989955,-500.0,0.00014915,2]
[394963544,1764216992219,-500.0,0.00014915,2]
[394963545,1764216996643,-174.22229,0.00014915,2]
[394963546,1764216996664,-300.0,0.00014915,2]
[394963547,1764216996686,-25.77771,0.00014915,2]
[394963548,1764216998232,-124.22229,0.00014915,2]
[394963549,1764216998254,-216.13867611,0.00014916,2]
[394963550,1764216998275,-159.63903389,0.00014916,2]
[394963551,1764216999743,-40.36096611,0.00014916,2]
[394963552,1764216999765,-222.35215359,0.00014916,2]
[394963553,1764216999787,-151.0,0.00014916,2]
[394963554,1764216999814,-86.2868803,0.00014916,2]
[394963555,1764217001570,-64.7131197,0.00014916,2]
[394963556,1764217001596,-151.0,0.00014916,2]
[394963557,1764217001617,-151.0,0.00014916,2]
[394963558,1764217001638,-133.2868803,0.00014916,2]
[394963559,1764217005329,-17.7131197,0.00014916,2]
[394963560,1764217005351,-482.2868803,0.00014916,2]
[394963561,1764217007150,2533.88003967,0.00014825,2]
[394963562,1764217007492,-17.7131197,0.00014916,2]
[394963563,1764217007512,-151.0,0.00014916,2]
[394963564,1764217007532,-151.0,0.00014916,2]
[394963565,1764217007552,-151.0,0.00014916,2]
[394963566,1764217007573,-29.2868803,0.00014916,2]
[394963567,1764217008831,1995.50749199,0.00014825,2]
[394963568,1764217008852,504.49250801,0.00014825,2]
[394963569,1764217009640,-413.43286335,0.00014916,2]
[394963570,1764217009663,-86.56713665,0.00014916,2]
[394963571,1764217012064,-64.43286335,0.00014916,2]
[394963572,1764217012087,-151.0,0.00014916,2]
[394963573,1764217012109,-151.0,0.00014916,2]
[394963574,1764217012130,-133.56713665,0.00014916,2]
[394963575,1764217013760,-17.43286335,0.00014916,2]
[394963576,1764217013781,-151.0,0.00014916,2]
[394963577,1764217013803,-151.0,0.00014916,2]
[394963578,1764217013824,-151.0,0.00014916,2]
[394963579,1764217013846,-29.56713665,0.00014916,2]
[394963580,1764217016486,-121.43286335,0.00014916,2]
[394963581,1764217016507,-151.0,0.00014916,2]
[394963582,1764217016528,-151.0,0.00014916,2]
[394963583,1764217016548,-76.56713665,0.00014916,2]
[394963584,1764217021208,-74.43286335,0.00014916,2]
[394963585,1764217021234,-151.0,0.00014916,2]
[394963586,1764217021265,-274.56713665,0.00014924,2]
[394963587,1764217022222,150.0,0.00014244,2]
[394963588,1764217023525,-225.43286318,0.00014924,2]
[394963589,1764217023551,-274.56713682,0.00014924,2]
[394963590,1764217025098,-225.43286318,0.00014924,2]
[394963591,1764217025125,-274.56713682,0.00014924,2]
[394963592,1764217028732,-151.0,0.00014916,2]
[394963593,1764217028760,-225.43286318,0.00014924,2]
[394963594,1764217028784,-123.56713682,0.00014924,2]
[394963595,1764217030264,-151.0,0.00014916,2]
[394963596,1764217030286,-151.0,0.00014916,2]
[394963597,1764217030309,-198.0,0.00014924,2]
[394963598,1764217031971,-151.0,0.00014916,2]
[394963599,1764217031994,-151.0,0.00014916,2]
[394963600,1764217032019,-151.0,0.00014916,2]
[394963601,1764217032042,-47.0,0.00014924,2]
[394963602,1764217035877,-500.0,0.00014916,2]
[394963603,1764217037446,-151.0,0.00014916,2]
[394963604,1764217037470,-151.0,0.00014916,2]
[394963605,1764217037492,-198.0,0.00014916,2]
[394963606,1764217039565,-20.01052842,0.00014916,2]
[394963607,1764217039588,-151.0,0.00014916,2]
[394963608,1764217039610,-151.0,0.00014916,2]
[394963609,1764217039633,-151.0,0.00014916,2]
[394963610,1764217039656,-26.98947158,0.00014916,2]
[394963611,1764217041781,-124.01052842,0.00014916,2]
[394963612,1764217041803,-151.0,0.00014916,2]
[394963613,1764217041825,-131.43286318,0.00014924,2]
[394963614,1764217041849,-93.5566084,0.00014924,2]
[394963615,1764217044419,-406.4433916,0.00014924,2]
[394963616,1764217044446,-93.5566084,0.00014924,2]
[394963617,1764217046883,-406.4433916,0.00014924,2]
[394963618,1764217046906,-93.5566084,0.00014924,2]
[394963619,1764217050692,-174.03173377,0.00014924,2]
[394963620,1764217050717,-325.96826623,0.00014924,2]
[394963621,1764217052296,-174.03173377,0.00014924,2]
[394963622,1764217052322,-325.96826623,0.00014924,2]
[394963623,1764217053994,-174.03173377,0.00014924,2]
[394963624,1764217054020,-325.96826623,0.00014924,2]
[394963625,1764217055476,250.0,0.00014284,2]
[394963626,1764217057437,-174.03173377,0.00014924,2]
[394963627,1764217057649,-325.96826623,0.00014924,2]
[394963628,1764217061967,-174.03173377,0.00014924,2]
[394963629,1764217061993,-325.96826623,0.00014924,2]
[394963630,1764217064815,-500.0,0.00014919,2]
[394963631,1764217066894,-500.0,0.00014919,2]
[394963632,1764217069209,-500.0,0.00014919,2]
[394963633,1764217071338,-500.0,0.00014919,2]
[394963634,1764217072923,-500.0,0.00014919,2]
[394963635,1764217076609,-500.0,0.00014919,2]
[394963636,1764217081563,-500.0,0.00014919,2]
[394963637,1764217084054,-500.0,0.00014919,2]
[394963638,1764217085870,-500.0,0.00014919,2]
[394963639,1764217088741,-500.0,0.00014919,2]
[394963640,1764217090231,-500.0,0.00014919,2]
[394963641,1764217093417,-500.0,0.00014919,2]
[394963642,1764217095367,-500.0,0.00014919,2]
[394963643,1764217098663,-500.0,0.00014919,2]
[394963644,1764217100307,-500.0,0.00014919,2]
[394963645,1764217103693,-500.0,0.00014919,2]
[394963646,1764217107755,-500.0,0.00014919,2]
[394963647,1764217109415,-500.0,0.00014919,2]
[394963648,1764217111467,-500.0,0.00014919,2]
[394963649,1764217115140,-500.0,0.00014919,2]
[394963650,1764217116332,167.48453338,0.00014825,2]
[394963651,1764217116946,-500.0,0.00014919,2]
[394963652,1764217119032,-500.0,0.00014919,2]
[394963653,1764217121834,-500.0,0.00014919,2]
[394963654,1764217125126,-500.0,0.00014919,2]
[394963655,1764217128094,-500.0,0.00014919,2]
[394963656,1764217130261,-500.0,0.00014919,2]
[394963657,1764217131988,-500.0,0.00014919,2]
[394963658,1764217136878,-500.0,0.00014919,2]
[394963659,1764217141800,-500.0,0.00014919,2]
[394963660,1764217144109,-500.0,0.00014919,2]
[394963661,1764217145804,-500.0,0.00014919,2]
[394963662,1764217148794,-500.0,0.00014919,2]
[394963663,1764217150437,-500.0,0.00014919,2]
[394963664,1764217152282,-500.0,0.00014919,2]
[394963665,1764217155115,-500.0,0.00014919,2]
[394963666,1764217158016,-500.0,0.00014919,2]
[394963667,1764217161268,-500.0,0.00014919,2]
[394963668,1764217164065,-500.0,0.00014919,2]
[394963669,1764217166256,-500.0,0.00014919,2]
[394963670,1764217167945,-500.0,0.00014919,2]
[394963671,1764217169463,-500.0,0.00014919,2]
[394963672,1764217172126,-500.0,0.00014919,2]
[394963673,1764217173990,-500.0,0.00014919,2]
[394963674,1764217176191,-182.9108029,0.00014919,2]
[394963675,1764217176213,-300.0,0.00014923,2]
[394963676,1764217176239,-17.0891971,0.00014924,2]
[394963677,1764217177950,-156.94253667,0.00014924,2]
[394963678,1764217177984,-236.24713523,0.00014924,2]
[394963679,1764217178011,-106.8103281,0.00014924,2]
[394963680,1764217181627,-393.1896719,0.00014924,2]
[394963681,1764217181654,-106.8103281,0.00014924,2]
[394963682,1764217184278,-454.10972621,0.00014924,2]
[394963683,1764217184301,-45.89027379,0.00014924,2]
[394963684,1764217185900,-454.10972621,0.00014924,2]
[394963685,1764217185923,-45.89027379,0.00014924,2]
[394963686,1764217188338,188.96931781,0.00014825,2]
[394963687,1764217189310,-498.45165438,0.00014924,2]
[394963688,1764217189332,-1.54834562,0.00014924,2]
[394963689,1764217191875,-498.45165438,0.00014924,2]
[394963690,1764217191897,-1.54834562,0.00014924,2]
[394963691,1764217192203,1000.0,0.00014343,2]
[394963692,1764217197459,-500.0,0.00014924,2]
[394963693,1764217199710,-52.63331141,0.00014924,2]
[394963694,1764217199732,-191.43954845,0.00014924,2]
[394963695,1764217199754,-255.92714014,0.00014924,2]
[394963696,1764217201328,-244.07285986,0.00014924,2]
[394963697,1764217201514,-150.0,0.00014924,2]
[394963698,1764217201535,-105.92714014,0.00014924,2]
[394963699,1764217204356,-194.07285986,0.00014924,2]
[394963700,1764217204380,-300.0,0.00014924,2]
[394963701,1764217204404,-5.92714014,0.00014924,2]
[394963702,1764217206819,-500.0,0.00014924,2]
[394963703,1764217209472,-500.0,0.0001483,2]
[394963704,1764217210048,8811.04068219,0.00014468,2]
[394963705,1764217210071,2982.77931781,0.00014468,2]
[394963706,1764217212405,-474.22229,0.0001483,2]
[394963707,1764217212425,-25.77771,0.00014915,2]
[394963708,1764217215216,-500.0,0.00014915,2]
[394963709,1764217216828,-500.0,0.00014915,2]
[394963710,1764217218460,-500.0,0.00014924,2]
[394963711,1764217221550,-194.07285986,0.00014924,2]
[394963712,1764217221572,-212.0,0.00014924,2]
[394963713,1764217221596,-93.92714014,0.00014925,2]
[394963714,1764217223158,-500.0,0.00014925,2]
[394963715,1764217224765,-500.0,0.00014925,2]
[394963716,1764217226403,-500.0,0.00014925,2]
[394963717,1764217229346,-500.0,0.00014924,2]
[394963718,1764217229603,1069.66749186,0.00014825,2]
[394963719,1764217232734,-13.80709007,0.00014924,2]
[394963720,1764217232759,-486.19290993,0.00014924,2]
[394963721,1764217237179,-500.0,0.00014916,2]
[394963722,1764217239071,-500.0,0.00014916,2]
[394963723,1764217241273,-500.0,0.00014916,2]
[394963724,1764217245636,-500.0,0.00014916,2]
[394963725,1764217247824,-500.0,0.00014916,2]
[394963726,1764217253005,-500.0,0.00014916,2]
[394963727,1764217255639,-81.0457758,0.00014916,2]
[394963728,1764217255662,-13.80709007,0.00014924,2]
[394963729,1764217255684,-156.69183458,0.00014924,2]
[394963730,1764217255707,-248.45529955,0.00014924,2]
[394963731,1764217259668,8930.34250814,0.00014825,2]
[394963732,1764217259696,191.74199186,0.00014825,2]
[394963733,1764217259842,-371.28199678,0.00014924,2]
[394963734,1764217259867,-128.71800322,0.00014924,2]
[394963735,1764217262133,-150.0,0.00014923,2]
[394963736,1764217262158,-350.0,0.00014924,2]
[394963737,1764217264961,-21.28199678,0.00014924,2]
[394963738,1764217264984,-478.71800322,0.00014924,2]
[394963739,1764217269456,-21.28199678,0.00014924,2]
[394963740,1764217269481,-228.26601918,0.00014924,2]
[394963741,1764217269507,-250.45198404,0.00014924,2]
[394963742,1764217272317,-249.54801596,0.00014924,2]
[394963743,1764217272343,-250.45198404,0.00014924,2]
[394963744,1764217277108,-249.54801596,0.00014924,2]
[394963745,1764217277137,-250.45198404,0.00014924,2]
[394963747,1764217280051,-249.54801596,0.00014924,2]
[394963748,1764217280081,-250.45198404,0.00014924,2]
[394963749,1764217281543,-249.54801596,0.00014924,2]
[394963750,1764217281570,-250.45198404,0.00014924,2]
[394963751,1764217284837,-249.54801596,0.00014924,2]
[394963752,1764217284865,-250.45198404,0.00014924,2]
[394963753,1764217286219,9808.26800814,0.00014825,2]
[394963754,1764217286244,10000.01,0.00014825,2]
[394963755,1764217286269,10000.01,0.00014825,2]
[394963756,1764217286299,10000.01,0.00014825,2]
[394963757,1764217286522,-500.0,0.00014825,2]
[394963758,1764217292619,1508.403,0.00014626,2]
[394963759,1764217292664,164.568,0.00014626,2]
[394963760,1764217293305,-500.0,0.00014825,2]
[394963761,1764217295015,-500.0,0.00014825,2]
[394963762,1764217297799,-500.0,0.00014825,2]
[394963763,1764217300679,-500.0,0.00014825,2]
[394963765,1764217304758,-500.0,0.00014825,2]
[394963766,1764217306620,-500.0,0.00014825,2]
[394963767,1764217308855,-500.0,0.00014825,2]
[394963768,1764217310663,-500.0,0.00014825,2]
[394963769,1764217312806,-500.0,0.00014825,2]
[394963770,1764217317393,-500.0,0.00014825,2]
[394963771,1764217319097,-500.0,0.00014825,2]
[394963772,1764217320648,-500.0,0.00014825,2]
[394963773,1764217324514,-500.0,0.00014825,2]
[394963774,1764217326718,-500.0,0.00014825,2]
[394963775,1764217328374,-500.0,0.00014825,2]
[394963776,1764217329415,-6392.838447,0.00014825,2]
[394963777,1764217332460,-500.0,0.00014825,2]
[394963778,1764217333514,-10000.01,0.00014825,2]
[394963779,1764217334572,-500.0,0.00014825,2]
[394963780,1764217336139,-500.0,0.00014825,2]
[394963783,1764217344302,-500.0,0.00014825,2]
[394963784,1764217349065,-500.0,0.00014825,2]
[394963785,1764217352118,-500.0,0.00014825,2]
[394963786,1764217354259,-238.71243769,0.00014824,2]
[394963787,1764217354281,-174.64232096,0.00014824,2]
[394963788,1764217354304,-86.64524135,0.00014824,2]
[394963789,1764217356665,-177.3655158,0.00014824,2]
[394963790,1764217356688,-241.94439326,0.00014824,2]
[394963791,1764217356709,-80.69009094,0.00014824,2]
[394963792,1764217359426,-303.67836821,0.00014824,2]
[394963793,1764217359449,-196.32163179,0.00014824,2]
[394963794,1764217361078,-303.67836821,0.00014824,2]
[394963795,1764217361109,-196.32163179,0.00014825,2]
[394963796,1764217364842,-500.0,0.00014825,2]
[394963797,1764217367153,-500.0,0.00014825,2]
[394963798,1764217369201,-500.0,0.00014825,2]
[394963799,1764217372071,-500.0,0.00014825,2]
[394963800,1764217374892,-500.0,0.00014825,2]
[394963801,1764217377140,-500.0,0.00014825,2]
[394963802,1764217380947,-500.0,0.00014825,2]
[394963803,1764217383005,-167.48453338,0.00014725,2]
[394963804,1764217383033,-300.0,0.00014824,2]
[394963805,1764217383061,-32.51546662,0.00014825,2]
[394963806,1764217386169,-500.0,0.00014825,2]
[394963807,1764217388502,-500.0,0.00014825,2]
[394963808,1764217390918,-500.0,0.00014825,2]
[394963809,1764217393638,-500.0,0.00014725,2]
[394963811,1764217396611,-500.0,0.00014725,2]
[394963812,1764217399900,-500.0,0.00014725,2]
[394963813,1764217402061,-500.0,0.00014725,2]
[394963814,1764217404254,-280.49203573,0.00014725,2]
[394963815,1764217404280,-151.0,0.00014822,2]
[394963816,1764217404305,-68.50796427,0.00014825,2]
[394963817,1764217409617,-500.0,0.00014825,2]
[394963820,1764217551976,150.0,0.00014636,2]
[394963821,1764217589234,9850.01,0.00014634,2]
[394963822,1764217589255,10000.01,0.00014634,2]
[394963823,1764217589276,657.7,0.00014634,2]
[394963825,1764217626191,500.0,0.000155,5]
[394963827,1764217647868,-165.34815311,0.00014725,2]
[394963828,1764217647891,-173.66389438,0.00014725,2]
[394963829,1764217647915,-160.98795251,0.00014725,2]
[394963830,1764217649499,-244.61167602,0.00014725,2]
[394963831,1764217651704,-500.0,0.00014725,2]
[394963832,1764217654025,-891.71688568,0.00014725,2]
[394963833,1764217657169,500.0,0.000155,5]
[394963835,1764217720189,9342.31,0.00014625,2]
[394963836,1764217720213,9804.45,0.00014625,2]
[394963847,1764217831769,-931.74371364,0.00014718,2]
[394963848,1764217831781,-365.14237173,0.00014718,2]
[394963849,1764217831790,-1200.0,0.00014724,2]
[394963850,1764217831799,-300.0,0.00014724,2]
[394963851,1764217831809,-2447.5748383,0.00014725,2]
[394963852,1764217831819,-477.4304,0.00014725,2]
[394963853,1764217831828,-20.21168696,0.00014725,2]
[394963854,1764217831837,-216.07467154,0.00014725,2]
[394963855,1764217831847,-173.66389437,0.00014725,2]
[394963856,1764217831856,-2279.63476658,0.00014725,2]
[394963857,1764217831866,-1133.2791,0.00014795,2]
[394963858,1764217831875,-974.2223,0.000148,2]
[394963859,1764217831884,-150.0,0.00014816,2]
[394963860,1764217831894,-572.03237802,0.00014817,2]
[394963861,1764217831903,-500.0,0.00014817,2]
[394963862,1764217831912,-182.99125949,0.00014817,2]
[394963863,1764217831922,-500.0,0.00014817,2]
[394963864,1764217831931,-500.0,0.00014817,2]
[394963866,1764217831943,-500.0,0.00014817,2]
[394963868,1764217831952,-500.0,0.00014817,2]
[394963870,1764217831961,-500.0,0.00014817,2]
[394963872,1764217831970,-500.0,0.00014817,2]
[394963874,1764217831979,-500.0,0.00014817,2]
[394963876,1764217831988,-500.0,0.00014817,2]
[394963878,1764217831998,-500.0,0.00014817,2]
[394963880,1764217832007,-500.0,0.00014817,2]
[394963882,1764217832016,-500.0,0.00014817,2]
[394963884,1764217832026,-500.0,0.00014817,2]
[394963886,1764217832035,-341.41295965,0.00014817,2]
[394963888,1764217832044,-500.0,0.00014817,2]
[394963890,1764217832053,-500.0,0.00014817,2]
[394963891,1764217832062,-500.0,0.00014817,2]
[394963893,1764217832072,-500.0,0.00014817,2]
[394963895,1764217832081,-500.0,0.00014817,2]
[394963896,1764217832091,-500.0,0.00014817,2]
[394963897,1764217832100,-500.0,0.00014817,2]
[394963898,1764217832109,-500.0,0.00014817,2]
[394963899,1764217832118,-500.0,0.00014817,2]
[394963900,1764217832128,-500.0,0.00014817,2]
[394963901,1764217832140,-500.0,0.00014817,2]
[394963902,1764217832150,-500.0,0.00014817,2]
[394963903,1764217832159,-500.0,0.00014817,2]
[394963904,1764217832168,-500.0,0.00014817,2]
[394963905,1764217832179,-500.0,0.00014817,2]
[394963906,1764217832188,-500.0,0.00014817,2]
[394963907,1764217832197,-500.0,0.00014817,2]
[394963908,1764217832206,-500.0,0.00014817,2]
[394963909,1764217832218,-500.0,0.00014817,2]
[394963910,1764217832227,-500.0,0.00014817,2]
[394963911,1764217832236,-500.0,0.00014817,2]
[394963912,1764217832246,-500.0,0.00014817,2]
[394963913,1764217832255,-500.0,0.00014817,2]
[394963914,1764217832264,-500.0,0.00014817,2]
[394963915,1764217832273,-500.0,0.00014817,2]
[394963916,1764217832283,-500.0,0.00014817,2]
[394963917,1764217832292,-500.0,0.00014817,2]
[394963918,1764217832301,-500.0,0.00014817,2]
[394963919,1764217832310,-500.0,0.00014817,2]
[394963920,1764217832319,-500.0,0.00014817,2]
[394963921,1764217832329,-500.0,0.00014817,2]
[394963922,1764217832338,-500.0,0.00014817,2]
[394963923,1764217832348,-500.0,0.00014817,2]
[394963924,1764217832358,-550.0,0.00014817,2]
[394963925,1764217832367,-500.0,0.00014817,2]
[394963926,1764217832376,-500.0,0.00014817,2]
[394963927,1764217832386,-500.0,0.00014817,2]
[394963928,1764217832395,-500.0,0.00014817,2]
[394963929,1764217832404,-500.0,0.00014817,2]
[394963930,1764217832413,-500.0,0.00014817,2]
[394963931,1764217832423,-500.0,0.00014817,2]
[394963932,1764217832432,-500.0,0.00014817,2]
[394963933,1764217832442,-500.0,0.00014817,2]
[394963934,1764217832451,-500.0,0.00014817,2]
[394963935,1764217832461,-500.0,0.00014817,2]
[394963936,1764217832470,-500.0,0.00014817,2]
[394963937,1764217832480,-500.0,0.00014817,2]
[394963938,1764217832490,-500.0,0.00014817,2]
[394963939,1764217832499,-500.0,0.00014817,2]
[394963940,1764217832508,-500.0,0.00014817,2]
[394963941,1764217832518,-500.0,0.00014817,2]
[394963942,1764217832527,-500.0,0.00014817,2]
[394963943,1764217832536,-500.0,0.00014817,2]
[394963944,1764217832546,-500.0,0.00014817,2]
[394963945,1764217832555,-500.0,0.00014817,2]
[394963946,1764217832564,-500.0,0.00014817,2]
[394963947,1764217832573,-500.0,0.00014817,2]
[394963948,1764217832582,-500.0,0.00014817,2]
[394963949,1764217832592,-500.0,0.00014817,2]
[394963950,1764217832603,-500.0,0.00014817,2]
[394963951,1764217832612,-500.0,0.00014817,2]
[394963952,1764217832621,-500.0,0.00014817,2]
[394963953,1764217832630,-500.0,0.00014817,2]
[394963954,1764217832640,-500.0,0.00014817,2]
[394963955,1764217832649,-500.0,0.00014817,2]
[394963956,1764217832659,-600.0,0.00014817,2]
[394963957,1764217832668,-500.0,0.00014817,2]
[394963958,1764217832677,-500.0,0.00014817,2]
[394963959,1764217832687,-500.0,0.00014817,2]
[394963960,1764217832696,-500.0,0.00014817,2]
[394963961,1764217832705,-500.0,0.00014817,2]
[394963962,1764217832714,-500.0,0.00014817,2]
[394963963,1764217832724,-500.0,0.00014817,2]
[394963964,1764217832733,-500.0,0.00014817,2]
[394963965,1764217832742,-375.03759724,0.00014817,2]
[394963966,1764217832752,-3109.74318107,0.00014817,2]
[394963967,1764217832761,-3109.74318107,0.00014817,2]
[394963968,1764217832770,-177224.4892932,0.00014818,2]
[394963969,1764217832779,-8704.5655918,0.00014818,2]
[394963970,1764217832789,-224.50499434,0.00014824,2]
[394963971,1764217832942,-426012.48453788,0.00014825,2]
[394963972,1764217832965,-138431.38249414,0.00014825,2]
[394963973,1764217832976,-101807.97825083,0.00014825,2]
[394963974,1764217832987,-20749.66319933,0.00014825,2]
[394963975,1764217832996,-1000.0,0.00014825,2]
[394963976,1764217833005,-5310.6389,0.00014825,2]
[394963977,1764217833015,-363.76182942,0.00014873,2]
[394963978,1764217833024,-505.40436336,0.00014873,2]
[394963979,1764217833033,-500.0,0.00014873,2]
[394963980,1764217833043,-505.76555872,0.00014873,2]
[394963981,1764217833052,-500.0,0.00014873,2]
[394963982,1764217833061,-500.0,0.00014873,2]
[394963983,1764217833071,-500.0,0.00014873,2]
[394963984,1764217833080,-199.5121612,0.00014873,2]
[394963985,1764217833091,-517.77858932,0.00014873,2]
[394963986,1764217833100,-3935.6183669,0.00014913,2]
[394963987,1764217833109,-999.0,0.00014916,3]
[394963988,1764217833118,-500.0,0.00014924,2]
[394963989,1764217833128,-343.53785786,0.00014924,2]
[394963990,1764217833137,-974.22229,0.00014925,2]
[394963991,1764217833150,-974.22229,0.00014925,2]
[394963992,1764217833159,-974.2223,0.00014925,2]
[394963993,1764217833169,-1852.42,0.00014927,2]
[394963994,1764217833178,-2000.0,0.00014973,2]
[394963995,1764217833189,-2250.17,0.00014973,2]
[394963996,1764217833198,-666.0,0.00014982,2]
[394963997,1764217833208,-948.537597,0.00014984,2]
[394963998,1764217833218,-19006.1935316,0.00014989,2]
[394963999,1764217833228,-432.64348447,0.00015026,2]